fUST/lending_fUST_20240828
["ID","MTS","AMOUNT","RATE_DAILY","PERIOD"]
[336335668,1724778684915,-500.0,0.00013698,2]
[336335669,1724778684926,-500.0,0.00013698,2]
[336335670,1724778684938,-500.0,0.00013699,2]
[336335671,1724778684948,-383.607104,0.00013699,2]
[336335672,1724778684961,-383.607104,0.00013699,2]
[336335673,1724778684972,-383.607104,0.00013699,2]
[336335674,1724778684982,-383.607104,0.00013699,2]
[336335675,1724778684992,-383.607104,0.00013699,2]
[336335676,1724778685002,-310.0,0.00013699,2]
[336335677,1724778685299,-310.0,0.00013699,2]
[336335678,1724778685325,-383.607104,0.00013699,2]
[336335679,1724778685347,-310.0,0.00013699,2]
[336335680,1724778685362,-383.607104,0.00013699,2]
[336335681,1724778685371,-310.0,0.00013699,2]
[336335682,1724778685381,-383.607104,0.00013699,2]
[336335683,1724778685390,-310.0,0.00013699,2]
[336335684,1724778685402,-383.607104,0.00013699,2]
[336335685,1724778685411,-310.0,0.00013699,2]
[336335686,1724778685421,-383.607104,0.00013699,2]
[336335687,1724778685430,-310.0,0.00013699,2]
[336335688,1724778685439,-310.0,0.00013699,2]
[336335689,1724778685449,-310.0,0.00013699,2]
[336335690,1724778685459,-310.0,0.00013699,2]
[336335691,1724778685468,-310.0,0.00013699,2]
[336335692,1724778685481,-310.0,0.00013699,2]
[336335693,1724778685491,-310.0,0.00013699,2]
[336335694,1724778685502,-310.0,0.00013699,2]
[336335695,1724778685512,-170.469557,0.00013699,2]
[336335696,1724778685523,-259.637975,0.00013699,2]
[336335697,1724778685533,-259.637975,0.00013699,2]
[336335698,1724778685543,-259.637975,0.00013699,2]
[336335699,1724778685561,-259.637975,0.00013699,2]
[336335700,1724778685571,-259.637975,0.00013699,2]
[336335701,1724778685581,-259.637975,0.00013699,2]
[336335702,1724778685590,-259.637975,0.00013699,2]
[336335703,1724778685601,-259.637975,0.00013699,2]
[336335704,1724778685611,-259.637975,0.00013699,2]
[336335705,1724778685620,-259.637975,0.00013699,2]
[336335706,1724778685630,-259.637975,0.00013699,2]
[336335707,1724778685641,-259.637975,0.00013699,2]
[336335708,1724778685650,-259.637975,0.00013699,2]
[336335709,1724778685660,-259.637975,0.00013699,2]
[336335710,1724778685669,-259.637975,0.00013699,2]
[336335711,1724778685678,-259.637975,0.00013699,2]
[336335712,1724778685688,-1975.703133,0.00013699,2]
[336335713,1724778685697,-3000.0,0.00013699,2]
[336335714,1724778685707,-150.0,0.00013699,2]
[336335715,1724778685716,-374.18725627,0.00013699,2]
[336335716,1724778685726,-500.0,0.00013699,2]
[336335717,1724778685735,-500.0,0.00013699,2]
[336335718,1724778685744,-500.0,0.00013699,2]
[336335719,1724778685753,-500.0,0.00013699,2]
[336335720,1724778685762,-500.0,0.00013699,2]
[336335721,1724778685771,-500.0,0.00013699,2]
[336335722,1724778685780,-500.0,0.00013699,2]
[336335723,1724778685789,-500.0,0.00013699,2]
[336335724,1724778685801,-500.0,0.00013699,2]
[336335725,1724778685810,-500.0,0.00013699,2]
[336335726,1724778685819,-500.0,0.00013699,2]
[336335727,1724778685828,-500.0,0.00013699,2]
[336335728,1724778685837,-500.0,0.00013699,2]
[336335729,1724778685847,-500.0,0.00013699,2]
[336335730,1724778685856,-500.0,0.00013699,2]
[336335731,1724778685866,-500.0,0.00013699,2]
[336335732,1724778685876,-500.0,0.00013699,2]
[336335733,1724778685885,-500.0,0.00013699,2]
[336335734,1724778685895,-500.0,0.00013699,2]
[336335735,1724778685905,-500.0,0.00013699,2]
[336335736,1724778685915,-500.0,0.00013699,2]
[336335737,1724778685924,-500.0,0.00013699,2]
[336335738,1724778685933,-500.0,0.00013699,2]
[336335739,1724778685943,-500.0,0.00013699,2]
[336335740,1724778685952,-500.0,0.00013699,2]
[336335741,1724778685961,-500.0,0.00013699,2]
[336335742,1724778685970,-605.28208301,0.00013699,2]
[336335743,1724778685979,-500.0,0.00013699,2]
[336335744,1724778685988,-500.0,0.00013699,2]
[336335745,1724778685998,-500.0,0.00013699,2]
[336335746,1724778686008,-500.0,0.00013699,2]
[336335747,1724778686019,-500.0,0.00013699,2]
[336335748,1724778686029,-500.0,0.00013699,2]
[336335749,1724778686039,-500.0,0.00013699,2]
[336335750,1724778686049,-500.0,0.00013699,2]
[336335751,1724778686060,-500.0,0.00013699,2]
[336335752,1724778686069,-500.0,0.00013699,2]
[336335753,1724778686079,-500.0,0.00013699,2]
[336335754,1724778686090,-500.0,0.00013699,2]
[336335755,1724778686100,-500.0,0.00013699,2]
[336335756,1724778686111,-500.0,0.00013699,2]
[336335757,1724778686124,-500.0,0.00013699,2]
[336335758,1724778686133,-500.0,0.00013699,2]
[336335759,1724778686145,-500.0,0.00013699,2]
[336335760,1724778686154,-500.0,0.00013699,2]
[336335761,1724778686163,-500.0,0.00013699,2]
[336335762,1724778686172,-500.0,0.00013699,2]
[336335763,1724778686182,-500.0,0.00013699,2]
[336335764,1724778686191,-500.0,0.00013699,2]
[336335765,1724778686202,-500.0,0.00013699,2]
[336335766,1724778686211,-500.0,0.00013699,2]
[336335767,1724778686221,-500.0,0.00013699,2]
[336335768,1724778686240,-500.0,0.00013699,2]
[336335769,1724778686252,-500.0,0.00013699,2]
[336335770,1724778686262,-500.0,0.00013699,2]
[336335771,1724778686271,-500.0,0.00013699,2]
[336335772,1724778686281,-500.0,0.00013699,2]
[336335773,1724778686291,-500.0,0.00013699,2]
[336335774,1724778686301,-500.0,0.00013699,2]
[336335775,1724778686312,-500.0,0.00013699,2]
[336335776,1724778686322,-500.0,0.00013699,2]
[336335777,1724778686332,-500.0,0.00013699,2]
[336335778,1724778686341,-500.0,0.00013699,2]
[336335779,1724778686351,-500.0,0.00013699,2]
[336335780,1724778686361,-500.0,0.00013699,2]
[336335781,1724778686373,-500.0,0.00013699,2]
[336335782,1724778686384,-500.0,0.00013699,2]
[336335783,1724778686396,-500.0,0.00013699,2]
[336335784,1724778686410,-500.0,0.00013699,2]
[336335785,1724778686421,-500.0,0.00013699,2]
[336335786,1724778686431,-500.0,0.00013699,2]
[336335787,1724778686443,-500.0,0.00013699,2]
[336335788,1724778686452,-500.0,0.00013699,2]
[336335789,1724778686463,-500.0,0.00013699,2]
[336335790,1724778686473,-184.0,0.00013699,2]
[336335791,1724778686485,-500.0,0.00013699,2]
[336335792,1724778686497,-500.0,0.00013699,2]
[336335793,1724778686508,-500.0,0.00013699,2]
[336335794,1724778686521,-500.0,0.00013699,2]
[336335795,1724778686531,-500.0,0.00013699,2]
[336335796,1724778686543,-500.0,0.00013699,2]
[336335797,1724778686554,-500.0,0.00013699,2]
[336335798,1724778686565,-151.0,0.00013699,2]
[336335799,1724778686576,-151.0,0.00013699,2]
[336335800,1724778686589,-330.18422,0.00013699,2]
[336335801,1724778686600,-330.18422,0.00013699,2]
[336335802,1724778686610,-328.092211,0.00013699,2]
[336335803,1724778686621,-328.092211,0.00013699,2]
[336335804,1724778686632,-438.068132,0.00013718,2]
[336335805,1724778686643,-160.233177,0.00013831,2]
[336335806,1724778686653,-159.223598,0.00013831,2]
[336335807,1724778686664,-2074.511068,0.00013831,2]
[336335808,1724778686675,-1934.688495,0.00013831,2]
[336335809,1724778686686,-600.0,0.00013832,2]
[336335810,1724778686698,-500.0,0.00013971,2]
[336335811,1724778686708,-554.65,0.00013971,2]
[336335812,1724778686718,-500.0,0.00013971,2]
[336335813,1724778686728,-1416.19,0.00013971,2]
[336335814,1724778686737,-500.0,0.00013971,2]
[336335815,1724778686750,-500.0,0.00013971,2]
[336335816,1724778686761,-1498.44,0.00013971,2]
[336335817,1724778686772,-500.0,0.00013971,2]
[336335818,1724778686782,-500.0,0.00013971,2]
[336335819,1724778686792,-500.0,0.00013971,2]
[336335820,1724778686803,-500.0,0.00013971,2]
[336335821,1724778686813,-1373.05,0.00013971,2]
[336335822,1724778686824,-1354.84,0.00013971,2]
[336335823,1724778686835,-500.0,0.00013972,2]
[336335824,1724778686847,-500.0,0.00013972,2]
[336335825,1724778686858,-541.93,0.00013972,2]
[336335826,1724778686869,-500.0,0.00013972,2]
[336335827,1724778686880,-500.0,0.00013972,2]
[336335828,1724778686891,-500.0,0.00013972,2]
[336335829,1724778686903,-500.69338132,0.00013972,2]
[336335830,1724778686912,-641.51,0.00013972,2]
[336335831,1724778686923,-383.607104,0.00013972,2]
[336335832,1724778686934,-383.607104,0.00013972,2]
[336335833,1724778686945,-500.0,0.00013972,2]
[336335834,1724778686957,-151.0,0.00013972,2]
[336335835,1724778686968,-500.0,0.00013972,2]
[336335836,1724778686979,-151.0,0.00013972,2]
[336335837,1724778686989,-151.0,0.00013972,2]
[336335838,1724778686999,-500.0,0.00013972,2]
[336335839,1724778687010,-601.05,0.00013972,2]
[336335840,1724778687020,-648.24,0.00013972,2]
[336335841,1724778687030,-500.0,0.00013972,2]
[336335842,1724778687040,-405.47612247,0.00013972,2]
[336335843,1724778687052,-151.0,0.00013972,2]
[336335844,1724778687064,-500.0,0.00013972,2]
[336335845,1724778687074,-500.0,0.00013972,2]
[336335846,1724778687085,-500.0,0.00013972,2]
[336335847,1724778687096,-151.0,0.00013972,2]
[336335848,1724778687109,-500.0,0.00013972,2]
[336335849,1724778687121,-500.0,0.00013972,2]
[336335850,1724778687132,-417.592714,0.00013972,2]
[336335851,1724778687143,-417.592714,0.00013972,2]
[336335852,1724778687155,-500.0,0.00013972,2]
[336335853,1724778687165,-611.08,0.00013972,2]
[336335854,1724778687176,-500.0,0.00013972,2]
[336335855,1724778687189,-500.0,0.00013972,2]
[336335856,1724778687200,-565.33881987,0.00013972,2]
[336335857,1724778687210,-528.18,0.00013972,2]
[336335858,1724778687221,-500.0,0.00013972,2]
[336335859,1724778687233,-500.0,0.00013972,2]
[336335860,1724778687244,-500.0,0.00013972,2]
[336335861,1724778687256,-500.0,0.00013972,2]
[336335862,1724778687267,-196.097018,0.00013972,2]
[336335863,1724778687281,-500.0,0.00013972,2]
[336335864,1724778687292,-500.0,0.00013972,2]
[336335865,1724778687303,-500.0,0.00013972,2]
[336335866,1724778687314,-500.0,0.00013972,2]
[336335867,1724778687325,-500.0,0.00013972,2]
[336335868,1724778687336,-1350.79,0.00013972,2]
[336335869,1724778687346,-578.974458,0.00013972,2]
[336335870,1724778687355,-578.974458,0.00013972,2]
[336335871,1724778687366,-500.0,0.00013972,2]
[336335872,1724778687377,-655.36,0.00013972,2]
[336335873,1724778687388,-500.0,0.00013972,2]
[336335874,1724778687401,-500.0,0.00013972,2]
[336335875,1724778687411,-644.39,0.00013972,2]
[336335876,1724778687421,-500.0,0.00013972,2]
[336335877,1724778687432,-584.14,0.00013972,2]
[336335878,1724778687445,-581.73,0.00013972,2]
[336335879,1724778687457,-500.0,0.00013972,2]
[336335880,1724778687466,-517.38,0.00013972,2]
[336335881,1724778687477,-500.0,0.00013972,2]
[336335882,1724778687488,-500.0,0.00013972,2]
[336335883,1724778687498,-500.0,0.00013972,2]
[336335884,1724778687507,-500.0,0.00013972,2]
[336335885,1724778687518,-187.693156,0.00013972,2]
[336335886,1724778687529,-500.0,0.00013972,2]
[336335887,1724778687540,-187.693156,0.00013972,2]
[336335888,1724778687550,-500.0,0.00013972,2]
[336335889,1724778687560,-500.0,0.00013972,2]
[336335890,1724778687572,-500.0,0.00013972,2]
[336335891,1724778687584,-151.0,0.00013972,2]
[336335892,1724778687594,-668.81,0.00013972,2]
[336335893,1724778687604,-500.0,0.00013972,2]
[336335894,1724778687615,-504.88,0.00013972,2]
[336335895,1724778687625,-259.637975,0.00013972,2]
[336335896,1724778687636,-259.637975,0.00013972,2]
[336335897,1724778687646,-500.0,0.00013972,2]
[336335898,1724778687656,-500.0,0.00013972,2]
[336335899,1724778687667,-500.0,0.00013972,2]
[336335900,1724778687678,-786.34,0.00013972,2]
[336335901,1724778687689,-502.22,0.00013972,2]
[336335902,1724778687699,-479.28442495,0.00013972,2]
[336335903,1724778687711,-500.0,0.00013972,2]
[336335904,1724778687723,-500.0,0.00013972,2]
[336335905,1724778687738,-151.0,0.00013972,2]
[336335906,1724778687748,-500.0,0.00013972,2]
[336335907,1724778687759,-655.26,0.00013972,2]
[336335908,1724778687770,-500.0,0.00013972,2]
[336335909,1724778687783,-500.0,0.00013972,2]
[336335910,1724778687795,-553.19,0.00013972,2]
[336335911,1724778687807,-500.0,0.00013972,2]
[336335912,1724778687819,-595.64,0.00013972,2]
[336335913,1724778687829,-500.0,0.00013972,2]
[336335914,1724778687839,-500.0,0.00013972,2]
[336335915,1724778687850,-506.7,0.00013972,2]
[336335916,1724778687860,-500.0,0.00013972,2]
[336335917,1724778687871,-632.42,0.00013972,2]
[336335918,1724778687882,-500.0,0.00013972,2]
[336335919,1724778687892,-500.0,0.00013972,2]
[336335920,1724778687904,-702.68,0.00013972,2]
[336335921,1724778687915,-512.06,0.00013972,2]
[336335922,1724778687924,-250.02,0.00013972,2]
[336335923,1724778687935,-500.0,0.00013972,2]
[336335924,1724778687945,-500.0,0.00013972,2]
[336335925,1724778687954,-500.0,0.00013972,2]
[336335926,1724778687964,-500.0,0.00013972,2]
[336335927,1724778687974,-567.1,0.00013972,2]
[336335928,1724778687984,-500.0,0.00013972,2]
[336335929,1724778687994,-151.0,0.00013972,2]
[336335930,1724778688005,-500.0,0.00013972,2]
[336335931,1724778688015,-764.19,0.00013972,2]
[336335932,1724778688026,-500.0,0.00013972,2]
[336335933,1724778688036,-500.0,0.00013972,2]
[336335934,1724778688046,-500.0,0.00013972,2]
[336335935,1724778688056,-500.0,0.00013972,2]
[336335936,1724778688067,-500.0,0.00013972,2]
[336335937,1724778688077,-500.0,0.00013972,2]
[336335938,1724778688087,-500.0,0.00013972,2]
[336335939,1724778688097,-500.0,0.00013972,2]
[336335940,1724778688107,-500.0,0.00013972,2]
[336335941,1724778688117,-500.0,0.00013972,2]
[336335942,1724778688127,-582.05,0.00013972,2]
[336335943,1724778688137,-500.0,0.00013972,2]
[336335944,1724778688147,-507.42,0.00013972,2]
[336335945,1724778688157,-500.0,0.00013972,2]
[336335946,1724778688167,-500.0,0.00013972,2]
[336335947,1724778688178,-500.0,0.00013972,2]
[336335948,1724778688188,-500.0,0.00013972,2]
[336335949,1724778688199,-500.0,0.00013972,2]
[336335950,1724778688209,-561.83,0.00013972,2]
[336335951,1724778688218,-500.0,0.00013972,2]
[336335952,1724778688228,-1107.43,0.00013972,2]
[336335953,1724778688238,-624.0,0.00013972,2]
[336335954,1724778688248,-500.0,0.00013972,2]
[336335955,1724778688258,-500.0,0.00013972,2]
[336335956,1724778688267,-500.0,0.00013972,2]
[336335957,1724778688278,-598.29,0.00013972,2]
[336335958,1724778688288,-2608.77,0.00013972,2]
[336335959,1724778688300,-500.0,0.00013972,2]
[336335960,1724778688312,-500.0,0.00013972,2]
[336335961,1724778688323,-2610.59045284,0.00013972,2]
[336335962,1724778688513,-164.05954716,0.00013972,2]
[336335963,1724778688524,-3163.65,0.00013972,2]
[336335964,1724778688535,-275.47090284,0.00013972,2]
[336335965,1724778688551,-963.13909716,0.00013972,2]
[336335966,1724778688562,-413.58728804,0.00013972,2]
[336335967,1724778694920,-86.41271196,0.00013972,2]
[336335968,1724778694930,-573.0,0.00013972,2]
[336335969,1724778694942,-1133.85,0.00013972,2]
[336335970,1724778694952,-500.0,0.00013972,2]
[336335971,1724778694963,-618.83,0.00013972,2]
[336335972,1724778694975,-500.0,0.00013972,2]
[336335973,1724778694986,-500.0,0.00013972,2]
[336335974,1724778694999,-1053.06,0.00013972,2]
[336335975,1724778695011,-3246.57,0.00013972,2]
[336335976,1724778695023,-500.0,0.00013972,2]
[336335977,1724778695034,-500.0,0.00013972,2]
[336335978,1724778695045,-3271.43,0.00013972,2]
[336335979,1724778695054,-500.0,0.00013972,2]
[336335980,1724778695066,-676.74,0.00013972,2]
[336335981,1724778695076,-500.0,0.00013972,2]
[336335982,1724778695086,-500.0,0.00013972,2]
[336335983,1724778695097,-500.0,0.00013972,2]
[336335984,1724778695107,-500.0,0.00013972,2]
[336335985,1724778695117,-500.0,0.00013972,2]
[336335986,1724778695127,-1528.72,0.00013972,2]
[336335987,1724778695137,-500.0,0.00013972,2]
[336335988,1724778695147,-1455.41,0.00013972,2]
[336335989,1724778695157,-1553.01,0.00013972,2]
[336335990,1724778695167,-504.21,0.00013972,2]
[336335991,1724778695176,-500.0,0.00013972,2]
[336335992,1724778695188,-500.0,0.00013972,2]
[336335993,1724778695198,-500.0,0.00013972,2]
[336335994,1724778695211,-210.67,0.00013972,2]
[336335995,1724778695220,-675.45,0.00013972,2]
[336335996,1724778695230,-500.0,0.00013972,2]
[336335997,1724778695239,-500.0,0.00013972,2]
[336335998,1724778695249,-170.14203574,0.00013972,2]
[336335999,1724778695258,-582.89,0.00013972,2]
[336336000,1724778695268,-500.0,0.00013972,2]
[336336001,1724778695278,-487.660934,0.00013972,2]
[336336002,1724778695287,-487.660934,0.00013972,2]
[336336003,1724778695297,-571.89,0.00013972,2]
[336336004,1724778695308,-500.0,0.00013972,2]
[336336005,1724778695318,-500.0,0.00013972,2]
[336336006,1724778695328,-500.0,0.00013972,2]
[336336007,1724778695337,-500.0,0.00013972,2]
[336336008,1724778695346,-500.0,0.00013972,2]
[336336009,1724778695356,-500.0,0.00013972,2]
[336336010,1724778695366,-500.0,0.00013972,2]
[336336011,1724778695375,-500.0,0.00013972,2]
[336336012,1724778695384,-500.0,0.00013972,2]
[336336013,1724778695394,-924.852967,0.00013972,2]
[336336014,1724778695407,-773.4,0.00013972,2]
[336336015,1724778695417,-213.462844,0.00013972,2]
[336336016,1724778695426,-924.852967,0.00013972,2]
[336336017,1724778695436,-500.0,0.00013972,2]
[336336018,1724778695447,-600.0,0.00013972,2]
[336336019,1724778695456,-213.462844,0.00013972,2]
[336336020,1724778695465,-500.0,0.00013972,2]
[336336021,1724778695476,-500.0,0.00013972,2]
[336336022,1724778695486,-500.0,0.00013972,2]
[336336023,1724778695496,-353.96583244,0.00013972,2]
[336336024,1724778695505,-552.32,0.00013972,2]
[336336025,1724778695515,-563.4,0.00013972,2]
[336336026,1724778695525,-500.0,0.00013972,2]
[336336027,1724778695534,-669.12,0.00013972,2]
[336336028,1724778695544,-500.0,0.00013972,2]
[336336029,1724778695554,-500.0,0.00013972,2]
[336336030,1724778695564,-276.303727,0.00013972,2]
[336336031,1724778695573,-500.0,0.00013972,2]
[336336032,1724778695582,-500.0,0.00013972,2]
[336336033,1724778695591,-276.303727,0.00013972,2]
[336336034,1724778695601,-151.0,0.00013972,2]
[336336035,1724778695610,-500.0,0.00013972,2]
[336336036,1724778695620,-500.0,0.00013972,2]
[336336037,1724778695629,-500.0,0.00013972,2]
[336336038,1724778695639,-159.223598,0.00013999,2]
[336336039,1724778695649,-2074.511068,0.00013999,2]
[336336040,1724778695659,-1934.688495,0.00013999,2]
[336336041,1724778695668,-15158.45896235,0.00014,2]
[336336042,1724778695678,-154.74467129,0.00014,2]
[336336043,1724778695689,-20132.78318423,0.00014,4]
[336336044,1724778695699,-1000.0,0.00014,14]
[336336045,1724778695709,-600.58928121,0.00014112,2]
[336336046,1724778695718,-152.314723,0.00014168,2]
[336336047,1724778695728,-160.233177,0.00014168,2]
[336336048,1724778695738,-159.223598,0.00014168,2]
[336336049,1724778695748,-2074.511068,0.00014168,2]
[336336050,1724778695758,-1934.688495,0.00014168,2]
[336336051,1724778695770,-151.0,0.00014227,2]
[336336052,1724778695779,-500.0,0.00014245,2]
[336336053,1724778695789,-554.65,0.00014245,2]
[336336054,1724778695799,-500.0,0.00014245,2]
[336336055,1724778695809,-1416.19,0.00014245,2]
[336336056,1724778695819,-500.0,0.00014245,2]
[336336057,1724778695829,-156.69383257,0.00014245,2]
[336336058,1724778695839,-500.0,0.00014245,2]
[336336059,1724778695848,-1456.41264193,0.00014245,2]
[336336060,1724778695858,-1498.44,0.00014245,2]
[336336061,1724778695867,-154.57491897,0.00014245,2]
[336336062,1724778695878,-500.0,0.00014245,2]
[336336063,1724778695888,-324.39718286,0.00014245,2]
[336336064,1724778695897,-154.57491897,0.00014245,2]
[336336065,1724778695907,-500.0,0.00014245,2]
[336336066,1724778695916,-500.0,0.00014245,2]
[336336067,1724778695926,-1373.05,0.00014245,2]
[336336068,1724778695936,-1354.84,0.00014245,2]
[336336069,1724778695946,-500.0,0.00014246,2]
[336336070,1724778695956,-500.0,0.00014246,2]
[336336071,1724778695966,-541.93,0.00014246,2]
[336336072,1724778695975,-500.0,0.00014246,2]
[336336073,1724778695985,-500.0,0.00014246,2]
[336336074,1724778695994,-500.0,0.00014246,2]
[336336075,1724778696004,-500.0,0.00014246,2]
[336336076,1724778696013,-500.0,0.00014246,2]
[336336077,1724778696023,-500.0,0.00014246,2]
[336336078,1724778696033,-601.05,0.00014246,2]
[336336079,1724778696042,-648.24,0.00014246,2]
[336336080,1724778696051,-500.0,0.00014246,2]
[336336081,1724778696061,-151.0,0.00014246,2]
[336336082,1724778696072,-500.0,0.00014246,2]
[336336083,1724778696082,-500.0,0.00014246,2]
[336336084,1724778696092,-500.0,0.00014246,2]
[336336085,1724778696102,-151.0,0.00014246,2]
[336336086,1724778696112,-270.41879411,0.00014246,2]
[336336087,1724778696122,-500.0,0.00014246,2]
[336336088,1724778696133,-417.592714,0.00014246,2]
[336336089,1724778696217,-417.592714,0.00014246,2]
[336336090,1724778696227,-500.0,0.00014246,2]
[336336091,1724778696237,-611.08,0.00014246,2]
[336336092,1724778696247,-500.0,0.00014246,2]
[336336093,1724778696257,-500.0,0.00014246,2]
[336336094,1724778696265,-528.18,0.00014246,2]
[336336095,1724778696274,-500.0,0.00014246,2]
[336336096,1724778696285,-500.0,0.00014246,2]
[336336097,1724778696294,-500.0,0.00014246,2]
[336336098,1724778696304,-500.0,0.00014246,2]
[336336099,1724778696314,-614.03486254,0.00014246,2]
[336336100,1724778696324,-500.0,0.00014246,2]
[336336101,1724778696334,-500.0,0.00014246,2]
[336336102,1724778696345,-500.0,0.00014246,2]
[336336103,1724778696355,-500.0,0.00014246,2]
[336336104,1724778696368,-1350.79,0.00014246,2]
[336336105,1724778696379,-500.0,0.00014246,2]
[336336106,1724778696391,-655.36,0.00014246,2]
[336336107,1724778696402,-500.0,0.00014246,2]
[336336108,1724778696415,-500.0,0.00014246,2]
[336336109,1724778696425,-644.39,0.00014246,2]
[336336110,1724778696435,-500.0,0.00014246,2]
[336336111,1724778696445,-584.14,0.00014246,2]
[336336112,1724778696455,-581.73,0.00014246,2]
[336336113,1724778696466,-500.0,0.00014246,2]
[336336114,1724778696478,-517.38,0.00014246,2]
[336336115,1724778696489,-500.0,0.00014246,2]
[336336116,1724778696501,-500.0,0.00014246,2]
[336336117,1724778696511,-380.09223319,0.00014246,2]
[336336118,1724778696522,-500.0,0.00014246,2]
[336336119,1724778696534,-187.693156,0.00014246,2]
[336336120,1724778696545,-500.0,0.00014246,2]
[336336121,1724778696556,-187.693158,0.00014246,2]
[336336122,1724778696566,-151.0,0.00014246,2]
[336336123,1724778696579,-500.0,0.00014246,2]
[336336124,1724778696590,-500.0,0.00014246,2]
[336336125,1724778696600,-500.0,0.00014246,2]
[336336126,1724778696610,-151.0,0.00014246,2]
[336336127,1724778696621,-668.81,0.00014246,2]
[336336128,1724778696630,-500.0,0.00014246,2]
[336336129,1724778696642,-504.88,0.00014246,2]
[336336130,1724778696652,-259.637975,0.00014246,2]
[336336131,1724778696665,-259.637982,0.00014246,2]
[336336132,1724778696676,-500.0,0.00014246,2]
[336336133,1724778696687,-500.0,0.00014246,2]
[336336134,1724778696698,-500.0,0.00014246,2]
[336336135,1724778696707,-786.34,0.00014246,2]
[336336136,1724778696717,-502.22,0.00014246,2]
[336336137,1724778696727,-500.0,0.00014246,2]
[336336138,1724778696737,-648.19587714,0.00014246,2]
[336336139,1724778696749,-151.0,0.00014246,2]
[336336140,1724778696759,-500.0,0.00014246,2]
[336336141,1724778696771,-655.26,0.00014246,2]
[336336142,1724778696781,-500.0,0.00014246,2]
[336336143,1724778696790,-545.27304372,0.00014246,2]
[336336144,1724778696800,-553.19,0.00014246,2]
[336336145,1724778696809,-500.0,0.00014246,2]
[336336146,1724778696819,-595.64,0.00014246,2]
[336336147,1724778696829,-500.0,0.00014246,2]
[336336148,1724778696840,-500.0,0.00014246,2]
[336336149,1724778696851,-506.7,0.00014246,2]
[336336150,1724778696862,-500.0,0.00014246,2]
[336336151,1724778696874,-632.42,0.00014246,2]
[336336152,1724778696883,-500.0,0.00014246,2]
[336336153,1724778696893,-500.0,0.00014246,2]
[336336154,1724778696902,-702.68,0.00014246,2]
[336336155,1724778696912,-512.06,0.00014246,2]
[336336156,1724778696922,-500.0,0.00014246,2]
[336336157,1724778696932,-500.0,0.00014246,2]
[336336158,1724778696941,-500.0,0.00014246,2]
[336336159,1724778696951,-500.0,0.00014246,2]
[336336160,1724778696960,-567.1,0.00014246,2]
[336336161,1724778696970,-491.75509989,0.00014246,2]
[336336162,1724778696980,-500.0,0.00014246,2]
[336336163,1724778696990,-764.19,0.00014246,2]
[336336164,1724778697000,-500.0,0.00014246,2]
[336336165,1724778697009,-170.09062449,0.00014246,2]
[336336166,1724778697018,-500.0,0.00014246,2]
[336336167,1724778697027,-500.0,0.00014246,2]